fUSD/lending_fUSD_20260621
["ID","MTS","AMOUNT","RATE_DAILY","PERIOD"]
[425848786,1781992231000,-470.85659172,0.00013715,2]
[425848809,1781992232000,-11969.4853,0.00014491,2]
[425848806,1781992232000,-300.0,0.00014475,2]
[425848804,1781992232000,-600.0,0.00014475,2]
[425848807,1781992232000,-752.26,0.00014481,2]
[425848808,1781992232000,-1079.3893,0.00014491,2]
[425848805,1781992232000,-231.86103774,0.00014475,2]
[425848802,1781992232000,-173.28,0.00014438,2]
[425848799,1781992232000,-752.26,0.00014137,2]
[425848801,1781992232000,-600.0,0.00014399,2]
[425848800,1781992232000,-166.66,0.00014325,2]
[425848797,1781992232000,-250.0,0.00014,2]
[425848796,1781992232000,-231.52,0.00013991,2]
[425848793,1781992232000,-357.66963617,0.00013791,2]
[425848795,1781992232000,-160.0,0.00013899,2]
[425848792,1781992232000,-166.66,0.00013779,2]
[425848794,1781992232000,-286.0,0.00013826,2]
[425848788,1781992232000,-363.59021709,0.00013715,2]
[425848791,1781992232000,-160.0,0.00013716,2]
[425848790,1781992232000,-2493.64902021,0.00013715,2]
[425848789,1781992232000,-3340.31737442,0.00013715,2]
[425848812,1781992232000,-2270.4593,0.00014491,2]
[425848798,1781992232000,-166.66,0.00014052,2]
[425848824,1781992232000,-1297.75938357,0.0001463,2]
[425848851,1781992232000,-609.8984744,0.00014969,2]
[425848828,1781992232000,-35731.08251329,0.0001485,2]
[425848863,1781992232000,-500.33137876,0.0001499,2]
[425848861,1781992232000,-329.56943733,0.0001499,2]
[425848859,1781992232000,-170.76194143,0.0001499,2]
[425848847,1781992232000,-602.69844609,0.00014968,2]
[425848855,1781992232000,-378.07194143,0.0001497,2]
[425848857,1781992232000,-221.92805857,0.0001497,2]
[425848843,1781992232000,-1951.91530594,0.000149,2]
[425848865,1781992232000,-220.09918391,0.00014999,2]
[425848853,1781992232000,-53.06919284,0.00014969,2]
[425848844,1781992232000,-500.0,0.00014968,2]
[425848838,1781992232000,-10146.21118708,0.000149,2]
[425848826,1781992232000,-752.26,0.00014826,2]
[425848836,1781992232000,-883.59927724,0.000149,2]
[425848848,1781992232000,-3694.35951356,0.00014969,2]
[425848834,1781992232000,-2709.12708752,0.000149,2]
[425848832,1781992232000,-256.11317871,0.000149,2]
[425848820,1781992232000,-1000.0,0.0001459,2]
[425848816,1781992232000,-300.0,0.00014555,2]
[425848818,1781992232000,-300.0,0.00014557,2]
[425848814,1781992232000,-600.0,0.00014555,2]
[425848830,1781992232000,-189.49888635,0.000149,2]
[425848822,1781992232000,-216.28381402,0.000146,2]
[425848840,1781992232000,-221.82083682,0.000149,2]
[425848879,1781992238000,-279.90081609,0.00014999,2]
[425848875,1781992238000,-53.47884502,0.00013231,2]
[425848876,1781992238000,-369.54735576,0.00013231,2]
[425848873,1781992238000,-500.0,0.00013231,2]
[425848877,1781992238000,-500.0,0.00013231,2]
[425848874,1781992238000,-446.52115498,0.00013231,2]
[425848872,1781992238000,-532.28660776,0.00013231,2]
[425848880,1781992238000,-500.0,0.00014999,2]
[425848878,1781992238000,-1000.0,0.00014849,2]
[425848882,1781992238000,-500.0,0.00014999,2]
[425848881,1781992238000,-500.0,0.00014999,2]
[425848884,1781992238000,-500.0,0.00014999,2]
[425848883,1781992238000,-500.0,0.00014999,2]
[425848894,1781992238000,-857.24649296,0.00015,2]
[425848893,1781992238000,-59612.89732816,0.00015,2]
[425848892,1781992238000,-219.0,0.00015,5]
[425848891,1781992238000,-156.0,0.00015,5]
[425848887,1781992238000,-500.0,0.00014999,2]
[425848888,1781992238000,-500.0,0.00014999,2]
[425848886,1781992238000,-500.0,0.00014999,2]
[425848890,1781992238000,-1134.19094943,0.00014999,2]
[425848885,1781992238000,-500.0,0.00014999,2]
[425848889,1781992238000,-175.97860757,0.00014999,2]
[425848956,1781992240000,-667.13825983,0.00015,2]
[425848957,1781992240000,-516.96501133,0.00015,2]
[425848958,1781992240000,-1700627.28440017,0.00015,2]
[425848965,1781992243000,-269635.21530711,0.00015,2]
[425848963,1781992243000,-1139.65119316,0.00015,2]
[425848964,1781992243000,-675.6410817,0.00015,2]
[425848962,1781992243000,-341.617643,0.00014775,2]
[425848979,1781992246000,-2181.60237106,0.00015,2]
[425848977,1781992246000,-318.6722771,0.000142,2]
[425848978,1781992246000,-200.97769244,0.000149,2]
[425848987,1781992260000,150.0,0.00012835,2]
[425848988,1781992266000,270.866618,0.0002,120]
[425848989,1781992453000,181.2,0.00010778,2]
[425848990,1781992472000,-188.418287,0.00013121,2]
[425848994,1781992525000,-172.99479077,0.00013121,2]
[425848997,1781992578000,-150.0,0.00013126,2]
[425848998,1781992631000,-515.27083545,0.00013128,2]
[425849002,1781992685000,-187.23768285,0.00013128,2]
[425849003,1781992739000,-250.0,0.00013178,2]
[425849004,1781992793000,-250.0,0.00013212,2]
[425849005,1781992846000,-500.0,0.00013212,2]
[425849008,1781992861000,166.66,0.00012988,2]
[425849007,1781992861000,166.66,0.0001272,2]
[425849011,1781992900000,-500.0,0.00013212,2]
[425849015,1781992953000,-200.0,0.00013201,2]
[425849018,1781993171000,-187.23768284,0.00013127,2]
[425849019,1781993175000,150.0,0.00012733,2]
[425849020,1781993188000,181.2,0.00010622,2]
[425849021,1781993198000,-150.0,0.00013176,2]
[425849022,1781993198000,-55.10183712,0.00013224,2]
[425849023,1781993226000,-183.73,0.00013221,2]
[425849024,1781993234000,150.0,0.00012824,2]
[425849026,1781993279000,-444.89816288,0.00013224,2]
[425849027,1781993294000,150.0,0.00012827,2]
[425849028,1781993332000,-187.23768284,0.00013124,2]
[425849029,1781993355000,150.0,0.0001273,2]
[425849030,1781993359000,-150.0,0.00013222,2]
[425849031,1781993359000,-298.1540236,0.00013223,2]
[425849032,1781993359000,-116.57037628,0.00013223,2]
[425849033,1781993386000,-300.42,0.00013177,2]
[425849034,1781993416000,150.0,0.00012782,2]
[425849129,1781993439000,-383.42962372,0.00013223,2]
[425849156,1781993441000,-500.0,0.00013223,2]
[425849158,1781993441000,-500.0,0.00013223,2]
[425849168,1781993441000,-500.0,0.00013223,2]
[425849159,1781993441000,-500.0,0.00013223,2]
[425849160,1781993441000,-500.0,0.00013223,2]
[425849161,1781993441000,-500.0,0.00013223,2]
[425849162,1781993441000,-500.0,0.00013223,2]
[425849165,1781993441000,-500.0,0.00013223,2]
[425849157,1781993441000,-500.0,0.00013223,2]
[425849164,1781993441000,-500.0,0.00013223,2]
[425849166,1781993441000,-500.0,0.00013223,2]
[425849167,1781993441000,-500.0,0.00013223,2]
[425849170,1781993441000,-500.0,0.00013223,2]
[425849169,1781993441000,-500.0,0.00013223,2]
[425849163,1781993441000,-500.0,0.00013223,2]
[425849155,1781993441000,-500.0,0.00013223,2]
[425849142,1781993441000,-500.0,0.00013223,2]
[425849154,1781993441000,-500.0,0.00013223,2]
[425849140,1781993441000,-110.26204018,0.00013223,2]
[425849139,1781993441000,-389.73795982,0.00013223,2]
[425849138,1781993441000,-500.0,0.00013223,2]
[425849143,1781993441000,-500.0,0.00013223,2]
[425849141,1781993441000,-500.15126518,0.00013223,2]
[425849145,1781993441000,-435.30687415,0.00013223,2]
[425849144,1781993441000,-500.0,0.00013223,2]
[425849178,1781993441000,-500.0,0.00013223,2]
[425849146,1781993441000,-500.0,0.00013223,2]
[425849147,1781993441000,-500.0,0.00013223,2]
[425849148,1781993441000,-500.0,0.00013223,2]
[425849150,1781993441000,-500.0,0.00013223,2]
[425849151,1781993441000,-500.0,0.00013223,2]
[425849149,1781993441000,-500.0,0.00013223,2]
[425849153,1781993441000,-500.0,0.00013223,2]
[425849152,1781993441000,-500.0,0.00013223,2]
[425849171,1781993441000,-500.0,0.00013223,2]
[425849201,1781993441000,-711.2723418,0.00013223,2]
[425849177,1781993441000,-500.0,0.00013223,2]
[425849194,1781993441000,-711.2723418,0.00013223,2]
[425849195,1781993441000,-711.2723418,0.00013223,2]
[425849196,1781993441000,-711.2723418,0.00013223,2]
[425849200,1781993441000,-711.2723418,0.00013223,2]
[425849198,1781993441000,-711.2723418,0.00013223,2]
[425849197,1781993441000,-711.2723418,0.00013223,2]
[425849199,1781993441000,-711.2723418,0.00013223,2]
[425849205,1781993441000,-711.2723418,0.00013223,2]
[425849202,1781993441000,-711.2723418,0.00013223,2]
[425849204,1781993441000,-711.2723418,0.00013223,2]
[425849206,1781993441000,-711.2723418,0.00013223,2]
[425849203,1781993441000,-711.2723418,0.00013223,2]
[425849208,1781993441000,-711.2723418,0.00013223,2]
[425849207,1781993441000,-711.2723418,0.00013223,2]
[425849181,1781993441000,-500.0,0.00013223,2]
[425849191,1781993441000,-500.0,0.00013223,2]
[425849192,1781993441000,-500.0,0.00013223,2]
[425849209,1781993441000,-711.2723418,0.00013223,2]
[425849189,1781993441000,-500.0,0.00013223,2]
[425849190,1781993441000,-500.0,0.00013223,2]
[425849173,1781993441000,-500.0,0.00013223,2]
[425849175,1781993441000,-500.0,0.00013223,2]
[425849180,1781993441000,-500.0,0.00013223,2]
[425849172,1781993441000,-500.0,0.00013223,2]
[425849182,1781993441000,-500.0,0.00013223,2]
[425849174,1781993441000,-500.0,0.00013223,2]
[425849183,1781993441000,-500.0,0.00013223,2]
[425849176,1781993441000,-500.0,0.00013223,2]
[425849185,1781993441000,-500.0,0.00013223,2]
[425849184,1781993441000,-500.0,0.00013223,2]
[425849187,1781993441000,-500.0,0.00013223,2]
[425849186,1781993441000,-500.0,0.00013223,2]
[425849188,1781993441000,-500.0,0.00013223,2]
[425849179,1781993441000,-516.21804187,0.00013223,2]
[425849193,1781993441000,-500.0,0.00013223,2]
[425849230,1781993442000,-764.13510721,0.00013223,2]
[425849231,1781993442000,-160.0,0.00013223,2]
[425849229,1781993442000,-764.13510721,0.00013223,2]
[425849226,1781993442000,-764.13510721,0.00013223,2]
[425849232,1781993442000,-150.0,0.00013223,2]
[425849233,1781993442000,-500.0,0.00013223,2]
[425849237,1781993442000,-150.0,0.00013371,2]
[425849235,1781993442000,-216.28381402,0.00013242,2]
[425849240,1781993442000,-166.66,0.00013524,2]
[425849236,1781993442000,-166.66,0.00013256,2]
[425849239,1781993442000,-150.0,0.00013504,2]
[425849241,1781993442000,-169.59,0.00013608,2]
[425849228,1781993442000,-764.13510721,0.00013223,2]
[425849234,1781993442000,-160.0,0.00013242,2]
[425849227,1781993442000,-764.13510721,0.00013223,2]
[425849218,1781993442000,-711.2723418,0.00013223,2]
[425849223,1781993442000,-764.13510721,0.00013223,2]
[425849242,1781993442000,-307.35426622,0.0001365,7]
[425849211,1781993442000,-711.2723418,0.00013223,2]
[425849210,1781993442000,-711.2723418,0.00013223,2]
[425849212,1781993442000,-711.2723418,0.00013223,2]
[425849213,1781993442000,-711.2723418,0.00013223,2]
[425849215,1781993442000,-711.2723418,0.00013223,2]
[425849225,1781993442000,-764.13510721,0.00013223,2]
[425849214,1781993442000,-711.2723418,0.00013223,2]
[425849216,1781993442000,-711.2723418,0.00013223,2]
[425849219,1781993442000,-711.2723418,0.00013223,2]
[425849220,1781993442000,-711.2723418,0.00013223,2]
[425849222,1781993442000,-764.13510721,0.00013223,2]
[425849221,1781993442000,-764.13510721,0.00013223,2]
[425849224,1781993442000,-764.13510721,0.00013223,2]
[425849217,1781993442000,-711.2723418,0.00013223,2]
[425849238,1781993442000,-500.0,0.0001339,3]
[425849243,1781993442000,-167.02,0.00013662,2]
[425849278,1781993442000,-783.58501936,0.00014583,2]
[425849262,1781993442000,-250.0,0.00014544,2]
[425849264,1781993442000,-600.0,0.00014546,2]
[425849267,1781993442000,-600.0,0.00014546,2]
[425849269,1781993442000,-300.0,0.00014546,2]
[425849268,1781993442000,-300.0,0.00014546,2]
[425849271,1781993442000,-300.0,0.00014546,2]
[425849266,1781993442000,-600.0,0.00014546,2]
[425849272,1781993442000,-300.0,0.00014546,2]
[425849270,1781993442000,-300.0,0.00014546,2]
[425849276,1781993442000,-2204.11302885,0.00014583,2]
[425849274,1781993442000,-209.34238986,0.00014546,2]
[425849275,1781993442000,-250.0,0.00014546,2]
[425849244,1781993442000,-355.19,0.00013699,2]
[425849277,1781993442000,-575.40600732,0.00014583,2]
[425849273,1781993442000,-500.0,0.00014546,2]
[425849261,1781993442000,-200.0,0.000145,5]
[425849265,1781993442000,-600.0,0.00014546,2]
[425849259,1781993442000,-101.92488701,0.00014492,2]
[425849246,1781993442000,-166.66,0.00013792,2]
[425849245,1781993442000,-360.0,0.00013777,7]
[425849248,1781993442000,-3473.79216415,0.0001399,2]
[425849260,1781993442000,-9029.66518129,0.00014492,2]
[425849254,1781993442000,-269.08556827,0.000142,2]
[425849247,1781993442000,-165.73,0.00013864,2]
[425849253,1781993442000,-166.66,0.00014059,2]
[425849252,1781993442000,-167.02,0.00014004,2]
[425849249,1781993442000,-2098.87402181,0.0001399,2]
[425849251,1781993442000,-2216.83975082,0.0001399,2]
[425849255,1781993442000,-255.0,0.00014333,2]
[425849256,1781993442000,-167.02,0.00014345,2]
[425849257,1781993442000,-250.0,0.0001444,2]
[425849258,1781993442000,-1244.45656713,0.00014491,2]
[425849263,1781993442000,-600.0,0.00014546,2]
[425849250,1781993442000,-500.0,0.0001399,2]
[425849294,1781993444000,-890.952,0.0001465,2]
[425849295,1781993444000,-2370.48620158,0.00014675,2]
[425849296,1781993444000,-1266.95610076,0.00014683,2]
[425849292,1781993444000,-400.0,0.000146,5]
[425849289,1781993444000,-43218.25659354,0.00014583,2]
[425849291,1781993444000,-700.0,0.00014592,2]
[425849286,1781993444000,-33116.54563307,0.00014583,2]
[425849297,1781993444000,-167.02,0.00014687,2]
[425849290,1781993444000,-491559.86291786,0.00014583,2]
[425849293,1781993444000,-4183.0044,0.0001465,2]
[425849302,1781993444000,-191.13315145,0.00014749,2]
[425849300,1781993444000,-498.0,0.00014749,2]
[425849298,1781993444000,-600.0,0.000147,5]
[425849307,1781993444000,-245.19472552,0.00014775,2]
[425849309,1781993444000,-498.0,0.00014787,2]
[425849306,1781993444000,-498.0,0.0001475,2]
[425849301,1781993444000,-717.08679943,0.00014749,2]
[425849308,1781993444000,-498.0,0.00014783,2]
[425849304,1781993444000,-500.0,0.00014749,2]
[425849303,1781993444000,-500.0,0.00014749,2]
[425849305,1781993444000,-500.0,0.00014749,2]
[425849299,1781993444000,-498.0,0.00014746,2]
[425849328,1781993445000,-500.0,0.00014968,2]
[425849327,1781993445000,-458.97151713,0.00014966,2]
[425849326,1781993445000,-498.0,0.00014959,2]
[425849324,1781993445000,-1600.84879188,0.000149,2]
[425849325,1781993445000,-240.39575102,0.00014925,2]
[425849335,1781993445000,-498.0,0.00014998,2]
[425849323,1781993445000,-200.97769242,0.000149,2]
[425849317,1781993445000,-200.0,0.0001488,2]
[425849334,1781993445000,-5173.0597457,0.00014992,2]
[425849318,1781993445000,-200.0,0.0001488,2]
[425849320,1781993445000,-589.06618484,0.000149,2]
[425849315,1781993445000,-150.0,0.00014867,2]
[425849312,1781993445000,-300.42,0.00014824,2]
[425849321,1781993445000,-1000.0,0.000149,5]
[425849316,1781993445000,-200.0,0.00014879,2]
[425849319,1781993445000,-226.73544192,0.000149,2]
[425849322,1781993445000,-150.27629556,0.000149,2]
[425849313,1781993445000,-498.0,0.0001484,2]
[425849311,1781993445000,-391.0,0.00014823,2]
[425849310,1781993445000,-800.0,0.000148,5]
[425849333,1781993445000,-59438.1714372,0.00014992,2]
[425849314,1781993445000,-150.0,0.00014867,2]
[425849330,1781993445000,-9131.5900683,0.00014982,2]
[425849344,1781993445000,-500.0,0.00014999,2]
[425849331,1781993445000,-166.77712625,0.0001499,2]
[425849332,1781993445000,-166.77712625,0.0001499,2]
[425849354,1781993445000,-344477.04212875,0.00015,2]
[425849355,1781993445000,-1023219.61996085,0.00015,2]
[425849356,1781993445000,-71549.9332583,0.00015,2]
[425849352,1781993445000,-153.0,0.00015,5]
[425849353,1781993445000,-1409301.31198152,0.00015,2]
[425849351,1781993445000,-151.0,0.00015,5]
[425849349,1781993445000,-500.0,0.00014999,2]
[425849347,1781993445000,-500.0,0.00014999,2]
[425849346,1781993445000,-500.0,0.00014999,2]
[425849343,1781993445000,-500.0,0.00014999,2]
[425849350,1781993445000,-500.0,0.00014999,2]
[425849339,1781993445000,-500.0,0.00014999,2]
[425849337,1781993445000,-500.0,0.00014999,2]
[425849341,1781993445000,-500.0,0.00014999,2]
[425849345,1781993445000,-500.0,0.00014999,2]
[425849342,1781993445000,-500.0,0.00014999,2]
[425849340,1781993445000,-500.0,0.00014999,2]
[425849348,1781993445000,-523.94,0.00014999,2]
[425849338,1781993445000,-500.0,0.00014999,2]
[425849336,1781993445000,-500.0,0.00014999,2]
[425849329,1781993445000,-500.0,0.00014968,2]
[425849383,1781993446000,-10000.0,0.00015435,2]
[425849385,1781993446000,-6417.31222568,0.00015454,2]
[425849374,1781993446000,-1266.95610069,0.00015142,2]
[425849380,1781993446000,-155.55555,0.000154,2]
[425849375,1781993446000,-155.55556,0.000152,2]
[425849387,1781993446000,-9131.5900683,0.00015472,2]
[425849379,1781993446000,-4862.45875032,0.00015398,2]
[425849377,1781993446000,-1517.64,0.000153,2]
[425849378,1781993446000,-4160.5485257,0.00015372,2]
[425849391,1781993446000,-10000.0,0.00015565,2]
[425849381,1781993446000,-183.73,0.00015424,2]
[425849376,1781993446000,-5082.01868522,0.00015292,2]
[425849389,1781993446000,-433.0,0.00015536,2]
[425849372,1781993446000,-279.73608303,0.00015116,2]
[425849361,1781993446000,-972346.35885184,0.00015,2]
[425849370,1781993446000,-150.0,0.00015116,2]
[425849366,1781993446000,-155.55555,0.00015,2]
[425849368,1781993446000,-150.0,0.00015068,2]
[425849369,1781993446000,-232.88,0.00015068,2]
[425849367,1781993446000,-167.02,0.00015028,2]
[425849363,1781993446000,-471.62,0.00015,2]
[425849371,1781993446000,-150.0,0.00015116,2]
[425849362,1781993446000,-215.03299379,0.00015,2]
[425849373,1781993446000,-10739.70172869,0.00015119,2]
[425849364,1781993446000,-1000.0,0.00015,2]
[425849360,1781993446000,-652.00776375,0.00015,2]
[425849359,1781993446000,-2106.74403981,0.00015,2]
[425849358,1781993446000,-768.74302248,0.00015,2]
[425849396,1781993446000,-310.0,0.000156,2]
[425849365,1781993446000,-1003.90706121,0.00015,2]
[425849400,1781993446000,-1266.95610069,0.00015601,2]
[425849445,1781993446000,-153.61758556,0.00016,2]
[425849410,1781993446000,-383.0,0.00015809,2]
[425849460,1781993446000,-1500.0,0.0001618,2]
[425849453,1781993446000,-472.0528917,0.000161,2]
[425849441,1781993446000,-150.0,0.00015987,2]
[425849447,1781993446000,-472.0528917,0.00016,2]
[425849398,1781993446000,-155.55556,0.000156,2]
[425849457,1781993446000,-182.481171,0.00016109,2]
[425849443,1781993446000,-3560.0,0.00015987,2]
[425849449,1781993446000,-15000.0,0.00016017,2]
[425849459,1781993446000,-165.73,0.00016153,2]
[425849451,1781993446000,-1266.95610069,0.0001606,2]
[425849432,1781993446000,-6111.0,0.00015981,2]
[425849440,1781993446000,-168.06,0.00015987,2]
[425849428,1781993446000,-10000.0,0.00015949,2]
[425849434,1781993446000,-250.0,0.00015987,2]
[425849424,1781993446000,-10000.0,0.00015932,2]
[425849455,1781993446000,-212.539835,0.00016109,2]
[425849436,1781993446000,-250.0,0.00015987,2]
[425849438,1781993446000,-248.831,0.00015987,2]
[425849412,1781993446000,-1229.0,0.00015809,2]
[425849405,1781993446000,-155.55556,0.000158,2]
[425849409,1781993446000,-1360.0,0.00015809,2]
[425849407,1781993446000,-1276.0,0.00015809,2]
[425849403,1781993446000,-10000.0,0.00015652,2]
[425849394,1781993446000,-316.0,0.000156,2]
[425849416,1781993446000,-3662.634,0.0001581,2]
[425849418,1781993446000,-6081.0,0.0001581,2]
[425849430,1781993446000,-9131.5900683,0.00015961,2]
[425849426,1781993446000,-3696.64679833,0.00015945,2]
[425849422,1781993446000,-15000.0,0.00015899,2]
[425849414,1781993446000,-1215.0,0.0001581,2]
[425849420,1781993446000,-6111.0,0.00015878,2]
[425849515,1781993447000,-572.68644399,0.00016438,2]
[425849530,1781993447000,-572.68644399,0.00016438,2]
[425849532,1781993447000,-572.68644399,0.00016438,2]
[425849513,1781993447000,-572.68644399,0.00016438,2]
[425849511,1781993447000,-572.68644399,0.00016438,2]
[425849507,1781993447000,-572.68644399,0.00016438,2]
[425849523,1781993447000,-572.68644399,0.00016438,2]
[425849505,1781993447000,-572.68644399,0.00016438,2]
[425849503,1781993447000,-572.68644399,0.00016438,2]
[425849534,1781993447000,-572.68644399,0.00016438,2]
[425849521,1781993447000,-572.68644399,0.00016438,2]
[425849525,1781993447000,-572.68644399,0.00016438,2]
[425849538,1781993447000,-572.68644399,0.00016438,2]
[425849527,1781993447000,-572.68644399,0.00016438,2]
[425849517,1781993447000,-572.68644399,0.00016438,2]
[425849519,1781993447000,-572.68644399,0.00016438,2]
[425849544,1781993447000,-572.68644399,0.00016438,2]
[425849540,1781993447000,-572.68644399,0.00016438,2]
[425849495,1781993447000,-572.68644399,0.00016438,2]
[425849542,1781993447000,-572.68644399,0.00016438,2]
[425849536,1781993447000,-572.68644399,0.00016438,2]
[425849493,1781993447000,-572.68644399,0.00016438,2]
[425849561,1781993447000,-572.68644399,0.00016438,2]
[425849499,1781993447000,-572.68644399,0.00016438,2]
[425849546,1781993447000,-572.68644399,0.00016438,2]
[425849462,1781993447000,-539.34740884,0.00016195,2]
[425849464,1781993447000,-2000.0,0.0001635,2]
[425849466,1781993447000,-186.4,0.00016437,2]
[425849472,1781993447000,-572.68644399,0.00016438,2]
[425849480,1781993447000,-572.68644399,0.00016438,2]
[425849476,1781993447000,-572.68644399,0.00016438,2]
[425849474,1781993447000,-572.68644399,0.00016438,2]
[425849485,1781993447000,-572.68644399,0.00016438,2]
[425849470,1781993447000,-572.68644399,0.00016438,2]
[425849478,1781993447000,-572.68644399,0.00016438,2]
[425849482,1781993447000,-572.68644399,0.00016438,2]
[425849468,1781993447000,-186.4,0.00016438,2]
[425849483,1781993447000,-572.68644399,0.00016438,2]
[425849487,1781993447000,-572.68644399,0.00016438,2]
[425849473,1781993447000,-572.68644399,0.00016438,2]
[425849475,1781993447000,-572.68644399,0.00016438,2]
[425849489,1781993447000,-572.68644399,0.00016438,2]
[425849491,1781993447000,-572.68644399,0.00016438,2]
[425849497,1781993447000,-572.68644399,0.00016438,2]
[425849509,1781993447000,-572.68644399,0.00016438,2]
[425849501,1781993447000,-572.68644399,0.00016438,2]
[425849550,1781993447000,-572.68644399,0.00016438,2]
[425849589,1781993447000,-1143.17032018,0.00016438,2]
[425849559,1781993447000,-572.68644399,0.00016438,2]
[425849601,1781993447000,-1143.17032018,0.00016438,2]
[425849610,1781993447000,-1143.17032018,0.00016438,2]
[425849612,1781993447000,-1143.17032018,0.00016438,2]
[425849607,1781993447000,-1143.17032018,0.00016438,2]
[425849605,1781993447000,-1143.17032018,0.00016438,2]
[425849614,1781993447000,-1143.17032018,0.00016438,2]
[425849617,1781993447000,-1143.17032018,0.00016438,2]
[425849618,1781993447000,-1143.17032018,0.00016438,2]
[425849620,1781993447000,-1143.17032018,0.00016438,2]
[425849603,1781993447000,-1143.17032018,0.00016438,2]
[425849630,1781993447000,-1143.17032018,0.00016438,2]
[425849628,1781993447000,-1143.17032018,0.00016438,2]
[425849632,1781993447000,-1143.17032018,0.00016438,2]
[425849624,1781993447000,-1143.17032018,0.00016438,2]
[425849634,1781993447000,-1143.17032018,0.00016438,2]
[425849636,1781993447000,-1143.17032018,0.00016438,2]
[425849638,1781993447000,-1143.17032018,0.00016438,2]
[425849640,1781993447000,-1143.17032018,0.00016438,2]
[425849643,1781993447000,-1143.17032018,0.00016438,2]
[425849548,1781993447000,-572.68644399,0.00016438,2]
[425849626,1781993447000,-1143.17032018,0.00016438,2]
[425849599,1781993447000,-1143.17032018,0.00016438,2]
[425849622,1781993447000,-1143.17032018,0.00016438,2]
[425849591,1781993447000,-1143.17032018,0.00016438,2]
[425849552,1781993447000,-572.68644399,0.00016438,2]
[425849597,1781993447000,-1143.17032018,0.00016438,2]
[425849557,1781993447000,-572.68644399,0.00016438,2]
[425849555,1781993447000,-572.68644399,0.00016438,2]
[425849563,1781993447000,-572.68644399,0.00016438,2]
[425849573,1781993447000,-572.68644399,0.00016438,2]
[425849567,1781993447000,-572.68644399,0.00016438,2]
[425849577,1781993447000,-1143.17032018,0.00016438,2]
[425849569,1781993447000,-572.68644399,0.00016438,2]
[425849571,1781993447000,-572.68644399,0.00016438,2]
[425849575,1781993447000,-572.68644399,0.00016438,2]
[425849609,1781993447000,-1143.17032018,0.00016438,2]
[425849587,1781993447000,-1143.17032018,0.00016438,2]
[425849581,1781993447000,-1143.17032018,0.00016438,2]
[425849579,1781993447000,-1143.17032018,0.00016438,2]
[425849584,1781993447000,-1143.17032018,0.00016438,2]
[425849675,1781993447000,-1143.17032018,0.00016438,2]
[425849583,1781993447000,-1143.17032018,0.00016438,2]
[425849593,1781993447000,-1143.17032018,0.00016438,2]
[425849565,1781993447000,-572.68644399,0.00016438,2]
[425849595,1781993447000,-1143.17032018,0.00016438,2]
[425849753,1781993448000,-1081.0,0.0001826,2]
[425849769,1781993448000,-150.99,0.00018533,2]
[425849748,1781993448000,-300.42,0.00018119,2]
[425849745,1781993448000,-2646.11,0.00018,2]
[425849737,1781993448000,-169.97,0.00017896,2]
[425849728,1781993448000,-363.13713395,0.00017289,2]
[425849741,1781993448000,-226.73544188,0.000179,2]
[425849750,1781993448000,-153.0,0.00018148,2]
[425849766,1781993448000,-1186.1,0.00018533,2]
[425849732,1781993448000,-1266.95610069,0.00017437,2]
[425849758,1781993448000,-1266.95610069,0.00018355,2]
[425849787,1781993448000,-299.99,0.00018533,4]
[425849764,1781993448000,-9131.5900683,0.0001841,2]
[425849771,1781993448000,-5200.49,0.00018533,2]
[425849760,1781993448000,-1734.62772924,0.00018372,2]
[425849762,1781993448000,-186.4,0.0001841,2]
[425849773,1781993448000,-999.99,0.00018533,2]
[425849794,1781993448000,-1276.0,0.00018809,2]